bitfinex/quotes_SOLUSD_20241009
["timestamp","ask_amount","ask_price","bid_price","bid_amount"]
[1728465493904,7.0016,142.83,142.81,23.776884]
[1728465494308,16.5949,142.87,142.81,23.776884]
[1728465494515,7.0009,142.84,142.81,23.776884]
[1728465496929,7.0013,142.83,142.78,30.66243586]
[1728465497119,7.0013,142.83,142.79,23.776884]
[1728465497319,7.0018,142.82,142.79,23.776884]
[1728465497519,16.5949,142.87,142.79,23.776884]
[1728465497828,7.0014,142.83,142.79,30.780084]
[1728465498031,7.0019,142.82,142.79,23.776884]
[1728465499626,7.0014,142.83,142.8,1.4004124]
[1728465499809,7.0009,142.84,142.8,1.4004124]
[1728465500618,7.0002,142.86,142.81,7.0019]
[1728465500822,7.0005,142.85,142.8,37.66203586]
[1728465501129,16.5949,142.87,142.81,32.1793144]
[1728465501309,6.9999,142.86,142.81,30.779084]
[1728465501511,7.0004,142.85,142.81,30.779084]
[1728465505004,6.9999,142.86,142.82,1.40013573]
[1728465505210,6.9999,142.86,142.81,30.779084]
[1728465506622,6.9999,142.86,142.82,7.0018]
[1728465507929,6.9999,142.86,142.83,1.40008501]
[1728465508138,6.9999,142.86,142.82,7.0018]
[1728465508813,6.9999,142.86,142.81,30.778984]
[1728465509236,16.5949,142.87,142.8,24.5084]
[1728465509422,7.0008,142.84,142.81,1.40021185]
[1728465510239,7.0008,142.84,142.8,24.5084]
[1728465510636,7.0008,142.84,142.81,23.776884]
[1728465511715,16.5949,142.87,142.82,1.40017108]
[1728465512029,7.0,142.86,142.81,43.93261986]
[1728465513934,16.5949,142.87,142.83,20.15483586]
[1728465514142,16.5949,142.87,142.84,1.39992327]
[1728465514513,6.9985,142.89,142.85,6.9999]
[1728465514714,6.9985,142.89,142.86,1.39977854]
[1728465514912,16.5905,142.91,142.86,1.39977854]
[1728465515111,6.998,142.9,142.86,8.39947854]
[1728465515324,6.998,142.9,142.86,8.39935197]
[1728465516635,6.998,142.9,142.87,23.776884]
[1728465517143,6.998,142.9,142.86,23.776884]
[1728465523741,6.9988,142.89,142.86,23.776884]
[1728465523948,6.9993,142.88,142.85,23.776884]
[1728465524128,16.5905,142.91,142.85,25.17669783]
[1728465524329,6.998,142.9,142.85,25.17669783]
[1728465524629,6.998,142.9,142.86,6.9998]
[1728465524829,6.998,142.9,142.87,1.39961106]
[1728465525543,6.998,142.9,142.86,6.9998]
[1728465525750,6.998,142.9,142.87,23.776884]
[1728465527550,16.5905,142.91,142.88,1.39962363]
[1728465527737,23.5883,142.91,142.88,1.39962363]
[1728465528745,16.5905,142.91,142.88,1.39962363]
[1728465528946,6.9979,142.9,142.87,23.776884]
[1728465529152,6.9979,142.9,142.88,1.39962574]
[1728465529444,6.9979,142.9,142.87,23.776884]
[1728465530931,23.588,142.91,142.88,1.39960369]
[1728465531131,16.5905,142.91,142.89,23.776884]
[1728465531331,6.9968,142.93,142.89,25.17630211]
[1728465531932,6.9987,142.89,142.84,7.0007]
[1728465532155,6.9987,142.89,142.86,23.776884]
[1728465533155,22.2464,142.9,142.86,23.776884]
[1728465535145,6.9984,142.89,142.86,23.776884]
[1728465542769,6.9989,142.88,142.85,23.776884]
[1728465543263,6.9985,142.89,142.85,23.776884]
[1728465543642,6.9991,142.88,142.85,23.776884]
[1728465547057,6.9985,142.89,142.85,23.776884]
[1728465548860,6.9985,142.89,142.85,30.777184]
[1728465549054,15.2485,142.9,142.87,23.776884]
[1728465549248,15.2485,142.9,142.88,1.39960174]
[1728465549455,15.2485,142.9,142.88,23.776884]
[1728465549966,6.997,142.92,142.89,23.776884]
[1728465550564,6.997,142.92,142.89,25.1762853]
[1728465550764,22.9985,142.94,142.89,25.1762853]
[1728465551065,6.9967,142.93,142.89,23.776884]
[1728465551763,22.9985,142.94,142.89,23.776884]
[1728465551944,6.9969,142.92,142.89,23.776884]
[1728465552146,6.9969,142.92,142.9,1.39934238]
[1728465552560,6.9969,142.92,142.89,23.776884]
[1728465555858,22.9985,142.94,142.89,23.776884]
[1728465556169,6.9965,142.93,142.89,23.776884]
[1728465556548,6.9965,142.93,142.9,1.39935088]
[1728465556760,6.9965,142.93,142.89,23.776884]
[1728465557885,6.9965,142.93,142.9,1.39935367]
[1728465559374,6.9965,142.93,142.89,23.776884]
[1728465559572,6.9965,142.93,142.9,1.39934048]
[1728465559876,6.9965,142.93,142.89,23.776884]
[1728465560874,6.9965,142.93,142.9,1.39935189]
[1728465562057,6.9965,142.93,142.89,23.776884]
[1728465564571,6.9969,142.92,142.89,23.776884]
[1728465566580,6.9969,142.92,142.9,1.39936539]
[1728465566789,16.6168,142.94,142.91,23.776884]
[1728465566961,23.6129,142.94,142.91,23.776884]
[1728465567161,23.6129,142.94,142.9,23.776884]
[1728465567767,6.9966,142.93,142.9,23.776884]
[1728465570687,6.9966,142.93,142.91,1.39926656]
[1728465572585,6.9966,142.93,142.9,23.776884]
[1728465573175,6.9966,142.93,142.91,1.39926603]
[1728465573390,16.6168,142.94,142.91,8.39646603]
[1728465573689,6.995,142.96,142.92,43.92731986]
[1728465573894,6.995,142.96,142.93,1.39898668]
[1728465575022,15.9092,142.97,142.94,25.175873]
[1728465575287,6.9935,142.99,142.96,23.776884]
[1728465575479,16.0821,143.01,142.97,1.39872842]
[1728465575691,6.9935,142.99,142.97,1.39872842]
[1728465576892,6.9931,143.0,142.97,1.39872842]
[1728465577191,23.0747,143.01,142.98,23.776884]
[1728465577366,23.0747,143.01,142.99,1.3985152]
[1728465577565,23.0747,143.01,142.98,23.776884]
[1728465577766,23.0747,143.01,142.99,1.39851598]
[1728465577963,23.0747,143.01,142.98,23.776884]
[1728465578172,6.993,143.0,142.96,43.92541986]
[1728465578370,6.993,143.0,142.96,36.93051986]
[1728465579270,6.993,143.0,142.96,43.92541986]
[1728465581691,16.0821,143.01,142.96,1.39856719]
[1728465581692,6.9941,142.98,142.96,1.39856719]
[1728465581873,6.9941,142.98,142.93,20.14993586]
[1728465581874,6.9941,142.98,142.94,8.39467653]
[1728465582280,16.0821,143.01,142.93,20.15003586]
[1728465582475,6.9945,142.97,142.93,13.15363586]
[1728465582690,6.9949,142.96,142.92,17.4917]
[1728465583090,6.9946,142.97,142.92,24.4884]
[1728465583669,6.9946,142.97,142.93,23.776884]
[1728465588393,6.994,142.98,142.95,23.776884]
[1728465588588,23.0746,143.01,142.96,8.39327692]
[1728465588808,16.0821,143.01,142.96,1.39877692]
[1728465589305,6.9934,143.0,142.96,1.39877692]
[1728465589679,6.9934,143.0,142.97,23.776884]
[1728465589990,6.9934,143.0,142.98,1.39860458]
[1728465593989,6.9934,143.0,142.97,23.776884]
[1728465594303,6.9934,143.0,142.96,23.776884]
[1728465595383,16.0821,143.01,142.96,23.776884]
[1728465595583,6.9935,142.99,142.96,23.776884]
[1728465597286,6.9931,143.0,142.96,30.771784]
[1728465597995,6.9931,143.0,142.98,23.776884]
[1728465598385,6.9935,142.99,142.96,23.776884]
[1728465601508,6.9935,142.99,142.96,23.776884]
[1728465602014,16.0821,143.01,142.95,23.776884]
[1728465602394,6.994,142.98,142.95,23.776884]
[1728465604810,16.0821,143.01,142.95,23.776884]
[1728465605110,16.0821,143.01,142.93,23.776884]
[1728465605111,6.995,142.96,142.93,23.776884]
[1728465608002,6.9946,142.97,142.93,23.776884]
[1728465609507,16.0821,143.01,142.93,23.776884]
[1728465609719,6.9953,142.96,142.92,23.776884]
[1728465610216,6.9961,142.94,142.88,17.4963]
[1728465610414,21.5308,142.97,142.88,24.495]
[1728465610716,6.9973,142.92,142.88,17.4963]
[1728465611218,6.9973,142.92,142.88,24.4951]
[1728465611718,6.9973,142.92,142.89,23.776884]
[1728465612422,6.9975,142.91,142.89,23.776884]
[1728465612919,6.9975,142.91,142.88,23.776884]
[1728465613705,6.9975,142.91,142.89,1.39943629]
[1728465613906,6.997,142.92,142.89,1.39943629]
[1728465615203,6.997,142.92,142.88,23.776884]
[1728465615910,6.997,142.92,142.89,1.39941619]
[1728465617397,6.9964,142.93,142.9,23.776884]
[1728465617703,21.5308,142.97,142.91,1.39927097]
[1728465618022,21.5308,142.97,142.9,43.92831986]
[1728465618023,6.9954,142.95,142.9,43.92831986]
[1728465618207,6.9959,142.94,142.9,43.92831986]
[1728465621603,6.9959,142.94,142.9,30.774684]
[1728465622199,6.9956,142.95,142.9,36.93051986]
[1728465622403,6.995,142.96,142.92,23.776884]
[1728465622596,6.995,142.96,142.93,1.39900893]
[1728465623103,6.995,142.96,142.92,23.776884]
[1728465623727,6.995,142.96,142.91,23.776884]
[1728465624729,28.5256,142.97,142.93,23.776884]
[1728465625019,22.2558,142.97,142.93,23.776884]
[1728465625226,22.2558,142.97,142.95,23.776884]
[1728465625519,22.2558,142.97,142.93,30.773184]
[1728465627614,6.994,142.98,142.93,23.776884]
[1728465627819,15.7435,143.0,142.95,23.776884]
[1728465628022,15.7435,143.0,142.96,1.39861326]
[1728465628221,15.7435,143.0,142.97,23.776884]
[1728465628520,15.7435,143.0,142.99,23.776884]
[1728465628727,6.992,143.02,142.99,23.776884]
[1728465628932,6.992,143.02,143.0,1.39844327]
[1728465629110,6.9925,143.01,142.99,23.776884]
[1728465630229,6.993,143.0,142.97,23.776884]
[1728465630422,6.993,143.0,142.96,23.776884]
[1728465630609,6.993,143.0,142.96,36.93051986]
[1728465632329,6.993,143.0,142.96,43.92531986]
[1728465632509,16.5032,143.04,142.96,43.92531986]
[1728465632510,6.9918,143.03,142.98,6.9935]
[1728465632825,6.9918,143.03,142.99,25.17526305]
[1728465634227,6.9921,143.02,142.99,25.17526305]
[1728465635732,6.9916,143.03,143.01,23.776884]
[1728465635919,6.9916,143.03,142.99,30.770184]
[1728465636729,6.9916,143.03,143.0,1.3982575]
[1728465636922,6.9916,143.03,143.01,23.776884]
[1728465637124,23.4943,143.04,143.02,1.3982564]
[1728465637931,23.4943,143.04,143.01,23.776884]
[1728465638232,16.5032,143.04,143.02,1.3982028]
[1728465638440,23.4943,143.04,143.01,23.776884]
[1728465638628,23.4943,143.04,143.02,1.39820278]
[1728465640351,23.4943,143.04,143.01,23.776884]
[1728465640628,23.4943,143.04,143.02,1.39820274]
[1728465642416,23.4943,143.04,143.01,23.776884]
[1728465645529,23.4943,143.04,143.0,23.776884]
[1728465645838,23.4943,143.04,143.01,1.39820279]
[1728465646415,16.5032,143.04,143.02,30.768784]
[1728465646616,6.6613,143.09,143.03,1.39815887]
[1728465646617,6.9902,143.06,143.03,1.39815887]
[1728465648240,16.5078,143.07,143.03,1.39815887]
[1728465648429,16.5078,143.07,143.04,32.16574321]
[1728465648634,15.6382,143.11,143.07,23.776884]
[1728465648820,22.6258,143.11,143.08,1.39757824]
[1728465649742,22.6258,143.11,143.08,23.776884]
[1728465649928,22.6258,143.11,143.09,1.39757207]
[1728465650324,15.6382,143.11,143.09,1.39757207]
[1728465650724,15.6285,143.15,143.09,1.3974942]
[1728465650935,15.6285,143.15,143.12,23.776884]
[1728465651124,15.6285,143.15,143.13,1.39714913]
[1728465651630,6.9847,143.17,143.13,1.39714913]
[1728465652344,22.6127,143.18,143.14,23.776884]
[1728465652840,15.6285,143.18,143.13,23.776884]
[1728465653027,6.9847,143.17,143.13,23.776884]
[1728465653344,6.9852,143.16,143.13,23.776884]
[1728465653936,6.9852,143.16,143.12,23.776884]
[1728465655339,6.9857,143.15,143.12,23.776884]
[1728465659741,6.9857,143.15,143.11,17.4681]
[1728465660539,6.9865,143.14,143.11,23.776884]
[1728465660743,6.9855,143.16,143.11,23.776884]
[1728465660948,6.9855,143.16,143.12,14.55081544]
[1728465661541,6.9855,143.16,143.12,13.15363586]
[1728465663659,6.9855,143.16,143.13,1.3971352]
[1728465664455,6.9855,143.16,143.12,13.15363586]
[1728465664635,6.9855,143.16,143.13,1.3971351]
[1728465665033,6.9855,143.16,143.12,13.15363586]
[1728465665245,6.9855,143.16,143.13,1.39713507]
[1728465665444,6.9847,143.17,143.13,8.38373507]
[1728465665750,6.9842,143.18,143.14,43.91661986]
[1728465665960,6.9842,143.18,143.15,1.39693736]
[1728465666443,17.1092422,143.2,143.18,6.984]
[1728465666642,17.1092422,143.2,143.19,1.39659795]
[1728465667330,6.9788,143.29,143.2,24.027864]
[1728465667658,13.3569,143.3,143.25,30.757484]
[1728465667846,6.9788,143.29,143.25,23.776884]
[1728465668552,6.9769,143.33,143.29,23.776884]
[1728465668849,0.8569422,143.34,143.28,23.776884]
[1728465669151,0.8569422,143.34,143.27,23.776884]
[1728465669367,6.9774,143.32,143.27,23.776884]
[1728465669545,6.9779,143.31,143.27,23.776884]
[1728465670256,6.9783,143.3,143.27,23.776884]
[1728465670633,6.9783,143.3,143.25,20.13433586]
[1728465670634,6.9783,143.3,143.26,23.776884]
[1728465672454,6.9783,143.3,143.25,23.776884]
[1728465672640,6.9783,143.3,143.26,13.15363586]
[1728465672953,15.0193,143.31,143.26,13.15363586]
[1728465673260,15.0193,143.31,143.27,25.17259004]
[1728465673550,15.0193,143.31,143.27,23.776884]
[1728465673960,6.9773,143.32,143.29,23.776884]
[1728465674642,6.9769,143.33,143.3,1.39551377]
[1728465675363,0.8569422,143.34,143.3,1.39551377]
[1728465675539,7.8333422,143.34,143.3,1.39551377]
[1728465676451,0.8569422,143.34,143.29,23.776884]
[1728465676642,6.977,143.33,143.29,23.776884]
[1728465678158,0.8569422,143.34,143.29,23.776884]
[1728465678330,0.8569422,143.34,143.3,17.4457]
[1728465678654,6.9769,143.33,143.29,23.776884]
[1728465679454,6.9777,143.32,143.29,23.776884]
[1728465679956,6.9774,143.32,143.28,23.776884]
[1728465682351,6.9779,143.31,143.28,23.776884]
[1728465682937,6.9793,143.28,143.24,24.4339]
[1728465683143,20.8569422,143.34,143.24,24.4339]
[1728465684064,6.9789,143.29,143.24,24.4339]
[1728465684245,6.9789,143.29,143.25,23.776884]
[1728465684444,15.4622,143.28,143.21,30.60993586]
[1728465684645,6.9803,143.26,143.22,1.39607101]
[1728465684842,6.9803,143.26,143.22,8.37827101]
[1728465685056,6.9803,143.26,143.22,6.9822]
[1728465685354,6.9803,143.26,143.23,14.54969808]
[1728465685739,6.9803,143.26,143.22,6.9822]
[1728465685960,22.4419,143.28,143.24,23.776884]
[1728465686147,22.4419,143.28,143.25,1.39589945]
[1728465686738,15.4622,143.28,143.25,8.37649945]
[1728465687247,15.4622,143.28,143.26,1.39585509]
[1728465688265,15.4622,143.28,143.25,1.3958595]
[1728465688565,22.4415,143.28,143.25,23.776884]
[1728465689154,15.4622,143.28,143.25,30.757284]
[1728465689362,6.9784,143.3,143.25,30.757284]
[1728465689558,6.9784,143.3,143.26,1.39584659]
[1728465689739,6.9784,143.3,143.25,30.757284]
[1728465691262,6.9789,143.29,143.25,30.757284]
[1728465692246,6.9789,143.29,143.25,23.776884]
[1728465692452,6.9789,143.29,143.24,30.757984]
[1728465695542,15.745,143.32,143.26,6.9801]
[1728465695742,6.9784,143.3,143.25,6.9806]
[1728465696150,6.9784,143.3,143.26,23.776884]
[1728465696552,15.745,143.32,143.26,30.756984]
[1728465696756,22.7225,143.32,143.28,23.776884]
[1728465697147,6.9779,143.31,143.28,23.776884]
[1728465697869,15.745,143.32,143.28,23.776884]
[1728465698171,22.7227,143.32,143.28,23.776884]
[1728465699263,15.745,143.32,143.29,8.37434949]
[1728465699452,15.745,143.32,143.29,21.52798535]
[1728465699655,15.745,143.32,143.3,23.776884]
[1728465700465,0.8569422,143.34,143.31,13.15363586]
[1728465700771,0.8569422,143.34,143.3,30.754984]
[1728465700772,7.8334422,143.34,143.3,30.754984]
[1728465701351,0.8569422,143.34,143.3,23.776884]
[1728465701551,6.977,143.33,143.3,23.776884]
[1728465701961,0.8569422,143.34,143.3,23.776884]
[1728465702165,7.8334422,143.34,143.3,23.776884]
[1728465706664,0.8569422,143.34,143.3,23.776884]
[1728465706891,0.8569422,143.34,143.27,30.756484]
[1728465707073,6.9779,143.31,143.27,30.756484]
[1728465707464,6.9779,143.31,143.26,30.60403586]
[1728465707465,6.9779,143.31,143.26,37.58393586]
[1728465707650,6.9779,143.31,143.26,30.60403586]
[1728465707856,6.9779,143.31,143.27,6.9797]
[1728465708669,6.9779,143.31,143.28,23.776884]
[1728465709567,0.8569422,143.34,143.28,23.776884]
[1728465709773,6.9775,143.32,143.28,23.776884]
[1728465710879,6.9775,143.32,143.29,1.39555153]
[1728465711073,6.9775,143.32,143.28,36.93051986]
[1728465711575,6.9788,143.29,143.24,13.15363586]
[1728465711776,6.9788,143.29,143.24,20.13483586]
[1728465712163,16.2205,143.31,143.24,20.13483586]
[1728465712164,6.9795,143.28,143.24,20.13483586]
[1728465712480,6.9795,143.28,143.24,20.13463586]
[1728465713069,6.9795,143.28,143.24,13.15363586]
[1728465713382,6.979,143.29,143.25,23.776884]
[1728465714061,13.4567,143.3,143.25,23.776884]
[1728465714456,13.4567,143.3,143.26,1.39584061]
[1728465714658,13.4567,143.3,143.25,30.757584]
[1728465715369,6.4783,143.3,143.25,30.757584]
[1728465715567,6.979,143.29,143.25,30.757584]
[1728465718083,6.9794,143.28,143.25,23.776884]
[1728465721857,6.98,143.27,143.24,23.776884]
[1728465722261,6.98,143.27,143.23,17.4538]
[1728465722460,6.9803,143.26,143.2,30.61103586]
[1728465722665,6.9803,143.26,143.21,6.9826]
[1728465723072,6.9803,143.26,143.22,6.9822]
[1728465723787,6.9803,143.26,143.23,23.776884]
[1728465724963,6.9803,143.26,143.21,6.9825]
[1728465725169,6.9803,143.26,143.22,23.776884]
[1728465725987,6.9803,143.26,143.23,1.39614847]
[1728465726362,6.4803,143.26,143.23,1.39614847]
[1728465726972,6.4783,143.3,143.24,13.15363586]
[1728465727180,6.9788,143.29,143.25,23.776884]
[1728465727592,15.9272,143.28,143.18,17.4598]
[1728465728084,6.9824,143.22,143.18,17.4598]
[1728465729425,23.2777,143.23,143.19,21.53372279]
[1728465729772,16.2959,143.26,143.2,6.9831]
[1728465729966,16.2959,143.26,143.21,1.39630219]
[1728465731062,23.2763,143.26,143.21,8.37860219]
[1728465731392,23.2763,143.26,143.22,23.776884]
[1728465731684,23.2763,143.26,143.22,30.759084]
[1728465731873,23.2763,143.26,143.23,1.39614008]
[1728465732077,23.2763,143.26,143.22,30.759084]
[1728465732276,23.2763,143.26,143.22,23.776884]
[1728465735297,16.2959,143.26,143.22,30.759084]
[1728465736476,16.2959,143.26,143.23,1.39606281]
[1728465736681,16.2959,143.26,143.24,23.776884]
[1728465738195,23.2762,143.26,143.23,23.776884]
[1728465739078,6.9794,143.28,143.23,38.32660534]
[1728465739874,6.979,143.29,143.25,23.776884]
[1728465740184,6.979,143.29,143.26,1.39590061]
[1728465741698,23.5133,143.3,143.26,1.39590061]
[1728465741913,16.5349,143.3,143.28,6.9792]
[1728465742077,17.3918422,143.34,143.28,8.37486858]
[1728465742286,6.9776,143.32,143.28,1.39566858]
[1728465742478,17.3918422,143.34,143.27,6.9796]
[1728465742794,6.9779,143.31,143.27,6.9796]
[1728465743684,6.9775,143.32,143.28,25.17252485]
[1728465743999,6.9769,143.33,143.28,32.15172485]
[1728465744181,6.9769,143.33,143.28,30.756084]
[1728465744607,6.9774,143.32,143.28,23.776884]
[1728465746303,17.3918422,143.34,143.28,30.756084]
[1728465746483,24.3687422,143.34,143.28,30.756084]
[1728465746686,6.9771,143.33,143.28,30.756084]
[1728465747088,6.9774,143.32,143.28,23.776884]
[1728465748604,6.9779,143.31,143.27,23.776884]
[1728465750496,6.9784,143.3,143.27,23.776884]
[1728465750697,6.9784,143.3,143.26,17.45]
[1728465752217,6.9789,143.29,143.26,23.776884]
[1728465753284,17.4442,143.32,143.24,23.776884]
[1728465753505,6.9797,143.28,143.24,23.776884]
[1728465753702,6.98,143.27,143.23,17.454]
[1728465753911,6.9803,143.26,143.21,20.13623586]
[1728465754506,6.9809,143.25,143.21,13.15363586]
[1728465754927,6.9814,143.24,143.2,17.4575]
[1728465755088,15.8991,143.29,143.2,17.4575]
[1728465755089,6.9817,143.23,143.2,17.4575]
[1728465755493,6.9816,143.24,143.2,17.4575]
[1728465756713,15.8991,143.29,143.18,13.15363586]
[1728465757007,6.9818,143.23,143.18,20.13773586]
[1728465757682,6.9823,143.22,143.18,20.13773586]
[1728465758785,6.9823,143.22,143.19,23.776884]
[1728465758985,6.9823,143.22,143.2,1.39649038]
[1728465759814,6.9818,143.23,143.2,14.55012624]
[1728465760305,22.3713,143.24,143.2,14.55012624]
[1728465760689,22.3713,143.24,143.19,30.760384]
[1728465762505,22.3713,143.24,143.2,1.39640364]
[1728465763012,22.3713,143.24,143.2,8.37950364]
[1728465763310,22.3713,143.24,143.2,6.9831]
[1728465764812,15.3899,143.24,143.21,25.17323214]
[1728465764992,15.3899,143.24,143.22,6.982]
[1728465765318,15.3899,143.24,143.21,49.61223214]
[1728465765704,15.3899,143.24,143.21,42.62963214]
[1728465765902,15.3899,143.24,143.21,41.233284]
[1728465766294,22.3712,143.24,143.21,41.233284]
[1728465770512,22.3712,143.24,143.21,23.776884]
[1728465770717,6.9818,143.23,143.19,30.760484]
[1728465775423,6.9818,143.23,143.2,1.39634256]
[1728465775802,6.9818,143.23,143.19,30.760484]
[1728465781329,6.9818,143.23,143.2,1.39634373]
[1728465781834,6.9818,143.23,143.19,30.760484]
[1728465782324,6.9818,143.23,143.2,1.3963439]
[1728465782534,6.9818,143.23,143.19,30.760484]
[1728465783130,22.3713,143.24,143.2,1.39633628]
[1728465784841,22.3713,143.24,143.19,30.760484]
[1728465785509,22.3713,143.24,143.2,1.39632877]
[1728465785848,22.3713,143.24,143.19,30.760484]
[1728465786541,15.5607,143.28,143.21,30.759184]
[1728465786837,6.9808,143.25,143.21,23.776884]
[1728465787735,15.5607,143.28,143.21,23.776884]
[1728465787949,6.9814,143.24,143.21,23.776884]
[1728465790036,17.45,143.27,143.18,6.9841]
[1728465790345,6.9827,143.21,143.17,24.4454]
[1728465791216,6.9833,143.2,143.17,17.4611]
[1728465791421,6.9829,143.21,143.17,17.4611]
[1728465791637,33.7538,143.25,143.16,6.985]
[1728465791819,6.9833,143.2,143.16,6.985]
[1728465792022,6.9833,143.2,143.17,23.776884]
[1728465792926,6.9828,143.21,143.18,1.39663215]
[1728465794032,6.9828,143.21,143.17,43.91511986]
[1728465795644,6.9828,143.21,143.18,1.39660238]
[1728465795848,6.9828,143.21,143.17,43.91511986]
[1728465797141,6.9828,143.21,143.17,36.93051986]
[1728465800119,33.7538,143.25,143.17,36.93051986]
[1728465800324,6.9832,143.2,143.16,20.13873586]
[1728465801751,6.9832,143.2,143.17,1.3967098]
[1728465802126,6.9832,143.2,143.16,20.13873586]
[1728465803925,6.9832,143.2,143.17,1.39671446]
[1728465804126,6.9827,143.21,143.17,1.39671446]
[1728465806440,6.9827,143.21,143.16,20.13873586]
[1728465806647,6.9835,143.2,143.16,20.13873586]
[1728465806833,6.9838,143.19,143.16,23.776884]
[1728465807531,6.9838,143.19,143.15,6.9855]
[1728465809049,6.9843,143.18,143.15,23.776884]
[1728465809256,16.0752,143.2,143.15,23.776884]
[1728465809553,6.985,143.17,143.15,23.776884]
[1728465809851,6.9843,143.18,143.14,23.776884]
[1728465811739,6.9843,143.18,143.15,23.776884]
[1728465818554,16.0752,143.2,143.16,13.15363586]
[1728465818756,16.0752,143.2,143.18,13.15363586]
[1728465818948,16.0752,143.2,143.18,14.55027448]
[1728465819857,16.0752,143.2,143.18,13.15363586]
[1728465820050,16.0752,143.2,143.18,14.550272]
[1728465820958,16.0752,143.2,143.18,13.15363586]
[1728465821164,16.0752,143.2,143.18,21.53416956]
[1728465821461,6.9821,143.23,143.18,21.53416956]
[1728465821462,23.2851,143.23,143.18,21.53416956]
[1728465821850,6.9823,143.22,143.18,21.53416956]
[1728465822553,16.303,143.23,143.18,21.53436956]
[1728465822554,23.2848,143.23,143.18,21.53436956]
[1728465822752,16.303,143.23,143.18,20.13773586]
[1728465823065,6.9822,143.22,143.18,20.13773586]
[1728465824765,6.9822,143.22,143.18,21.53428263]
[1728465824947,6.9822,143.22,143.18,20.13773586]
[1728465825263,6.9822,143.22,143.19,1.39654682]
[1728465825461,6.9822,143.22,143.18,20.13773586]
[1728465826348,6.9822,143.22,143.19,1.3965469]
[1728465826547,6.9822,143.22,143.18,20.13773586]
[1728465826748,6.9822,143.22,143.18,21.53428281]
[1728465826971,6.9822,143.22,143.18,20.13773586]
[1728465827863,6.9822,143.22,143.19,1.39654721]
[1728465830066,6.9822,143.22,143.18,20.13773586]
[1728465830267,6.9822,143.22,143.18,21.53428365]
[1728465831269,6.9822,143.22,143.18,20.13773586]
[1728465831572,6.9822,143.22,143.19,1.39654809]
[1728465831869,6.9822,143.22,143.18,20.13773586]
[1728465832056,6.9822,143.22,143.19,1.39654814]
[1728465832766,6.9822,143.22,143.18,20.13773586]
[1728465834050,6.9828,143.21,143.17,41.237384]
[1728465834248,16.303,143.23,143.17,41.237384]
[1728465834659,6.9836,143.2,143.17,23.776884]
[1728465835173,6.9828,143.21,143.17,30.761484]
[1728465836166,16.303,143.23,143.19,6.9833]
[1728465836474,6.9824,143.22,143.18,21.53426025]
[1728465836665,6.9824,143.22,143.18,20.13763586]
[1728465837177,6.9824,143.22,143.18,21.53426523]
[1728465842009,6.9824,143.22,143.18,20.13763586]
[1728465842158,6.9824,143.22,143.18,6.984]
[1728465843659,6.9824,143.22,143.19,1.39662596]
[1728465844353,23.2848,143.23,143.19,8.38032596]
[1728465846783,16.303,143.23,143.19,8.38032596]
[1728465847981,23.2848,143.23,143.19,8.38032596]
[1728465849181,23.2848,143.23,143.19,6.9837]
[1728465849353,23.2848,143.23,143.18,13.15363586]
[1728465849553,23.2848,143.23,143.18,20.13763586]
[1728465851278,6.9823,143.22,143.18,20.13763586]
[1728465851474,6.9823,143.22,143.18,6.984]
[1728465854079,6.9823,143.22,143.14,34.9285]
[1728465854080,16.303,143.23,143.14,17.4644]
[1728465854381,6.985,143.17,143.12,6.987]
[1728465854561,16.2935,143.19,143.11,24.4555]
[1728465854562,6.9855,143.16,143.11,24.4555]
[1728465855982,6.9855,143.16,143.12,6.987]
[1728465861174,6.9855,143.16,143.12,20.14063586]
[1728465862398,6.9855,143.16,143.12,23.776884]
[1728465863694,6.9855,143.16,143.12,30.763884]